Cogmind - Beta 16 @@@ ROGUE MODE // 2025.12.22 @ 22:11:24 Player: McSaucyNugget Result: Escaped! Performance ------------- Evolutions (9) 4500 Regions Visited (24) 4800 Robots Destroyed (208) 1040 Value Destroyed (8918) 8918 Prototype IDs (32) 640 Alien Tech Used (0) 0 Bonus (13731) 13731 TOTAL SCORE: 33629 Bonus ------- High Alert Combat Kills 327 Follower Combat Kills 1904 Entered Garrisons 1200 Used RIF Installer 3500 Network Hubs Disabled 400 Aligned with FarCom 300 Built Enhanced Grunts 300 A7 Reached Mainframe 300 Met R17 at Cetus 500 Met R17 at Research 2000 Win 3000 Cogmind --------- Core Integrity 1431/1600 Matter 243/300 Energy 392/400 System Corruption 12% Temperature Cool (86) Movement Flying (26) Location To Epsilon Eridani Parts ------- > --- POWER (2) -------- Micro Antimatter Reactor Quantum Reactor > --- PROPULSION (8) --- Cooled VTOL Module Cooled VTOL Module Field Propulsion Array Cooled Impulse Thruster Impulse Thruster Array > --- UTILITY (13) ----- Advanced Melee Analysis Suite Advanced Melee Analysis Suite Improved Cloaking Device Layered Light Armor Plating Centrium Medium Armor Plating Improved Hacking Suite Improved Hacking Suite Advanced Hacking Suite > --- WEAPON (2) ------- Centrium Greatsword > --- INVENTORY (5) ---- Light Antimatter Reactor Xenon Bombardment Thruster Advanced Reaction Control System Enhanced Nova Cannon Long-range Missile Launcher Peak State ------------ > --- POWER ------------ Micro Antimatter Reactor Quantum Reactor > --- PROPULSION ------- Cooled VTOL Module Cooled VTOL Module Cooled Cesium-ion Thruster Field Propulsion Array Cooled Impulse Thruster Impulse Thruster Array > --- UTILITY ---------- Advanced Melee Analysis Suite Advanced Melee Analysis Suite Advanced Transmission Jammer Improved Cloaking Device Layered Light Armor Plating Centrium Medium Armor Plating Improved Hacking Suite Improved Hacking Suite Improved Hacking Suite Advanced Hacking Suite Advanced Hacking Suite Advanced Hacking Suite Experimental System Shield > --- WEAPON ----------- Centrium Greatsword > --- INVENTORY -------- Light Antimatter Reactor Xenon Bombardment Thruster Advanced Reaction Control System Enhanced Nova Cannon Long-range Missile Launcher [Rating: 169] Favorites ----------- Power Micro Nuclear Core Engine Backup Power III Power Core Micro Nuclear Core Reactor Micro Antimatter Reactor Propulsion Cooled Cesium-ion Thruster Flight Unit Cooled Cesium-ion Thruster Utility Hacking Suite Device Microactuators Processor Advanced Melee Analysis Suite Hackware Hacking Suite Protection Layered Light Armor Plating Weapon Improved Remote Datajack Energy Gun AWS/Thermal Energy Cannon Cooled Plasma Cannon Ballistic Gun Light Assault Rifle Launcher Long-range Missile Launcher Special Weapon Improved Remote Datajack Impact Weapon Thunder Hammer Slashing Weapon Greatsword Special Melee Weapon Datajack Build | -11 -10 -10 -10 -9 -8 -8 -8 -8 -7 -7 -6 -6 -5 -5 -5 -5 -4 -4 -4 -4 -4 -3 -2 -1 ------- Run | Yrd Mat Min Exi Min Mat Gar Mat Gar Fac Gar Fac Gar Fac Gar Fac Gar Fac Ext Cet Arc Hub Res Res Acc Slots Evolved 18 | . . . . . 4 . . . 2 . 2 . 2 . . . 2 . . . . 2 2 2 Power 1 | . . . . . . . . . . . . . . . . . 1 . . . . . . . Propulsion 6 | . . . . . 1 . . . 1 . . . . . . . 1 . . . . 1 1 1 Utility 11 | . . . . . 3 . . . 1 . 2 . 2 . . . . . . . . 1 1 1 Weapon . | . . . . . . . . . . . . . . . . . . . . . . . . . Parts Attached 162 | 3 6 4 3 3 16 9 4 12 9 6 17 2 11 3 8 2 8 8 2 4 2 12 3 5 Power 20 | 1 . 1 . . 2 3 . . 1 . 2 . 1 . 1 . 1 3 . . . 3 . 1 Engine 6 | 1 . 1 . . 1 1 . . . . . . . . . . . 1 . . . 1 . . Core 10 | . . . . . 1 2 . . 1 . 2 . 1 . 1 . 1 1 . . . . . . Reactor 4 | . . . . . . . . . . . . . . . . . . 1 . . . 2 . 1 Propulsion 28 | . 2 2 . . 2 3 1 1 2 1 4 . 3 . 1 . 1 1 . . . 2 1 1 Treads . | . . . . . . . . . . . . . . . . . . . . . . . . . Leg . | . . . . . . . . . . . . . . . . . . . . . . . . . Wheel . | . . . . . . . . . . . . . . . . . . . . . . . . . Hover . | . . . . . . . . . . . . . . . . . . . . . . . . . Flight 28 | . 2 2 . . 2 3 1 1 2 1 4 . 3 . 1 . 1 1 . . . 2 1 1 Utility 82 | . 2 . . 1 9 1 3 6 4 5 8 1 6 3 4 2 5 4 2 4 2 6 2 2 Device 23 | . . . . . 3 1 1 1 1 1 1 . 1 1 1 . 2 2 . . 1 4 . 2 Storage . | . . . . . . . . . . . . . . . . . . . . . . . . . Processor 8 | . 2 . . . 2 . 1 . . . 1 . . . . . . . . . . 2 . . Hackware 38 | . . . . . 1 . 1 5 2 4 4 1 4 2 3 2 3 1 . 4 . . 1 . Protection 13 | . . . . 1 3 . . . 1 . 2 . 1 . . . . 1 2 . 1 . 1 . Artifact . | . . . . . . . . . . . . . . . . . . . . . . . . . Weapon 32 | 2 2 1 3 2 3 2 . 5 2 . 3 1 1 . 2 . 1 . . . . 1 . 1 Energy Gun 1 | . . . 1 . . . . . . . . . . . . . . . . . . . . . Energy Cannon 3 | . . . 1 . . . . . . . 1 . . . . . . . . . . . . 1 Ballistic Gun 5 | 2 1 1 1 . . . . . . . . . . . . . . . . . . . . . Ballistic Cannon . | . . . . . . . . . . . . . . . . . . . . . . . . . Launcher 4 | . . . . . . 1 . 1 . . 1 1 . . . . . . . . . . . . Special Weapon 6 | . 1 . . . . . . 1 1 . . . 1 . 1 . 1 . . . . . . . Impact Weapon 6 | . . . . 2 . . . 2 . . 1 . . . 1 . . . . . . . . . Slashing Weapon 6 | . . . . . 3 1 . . 1 . . . . . . . . . . . . 1 . . Piercing Weapon . | . . . . . . . . . . . . . . . . . . . . . . . . . Special Melee Weapon 1 | . . . . . . . . 1 . . . . . . . . . . . . . . . . Unidentified Prototypes 9 | . . . 2 . 1 . . . . 1 1 . . . 1 . 1 . 1 . . . 1 . Parts Lost 27 | . . 3 . . . 3 . . . 2 2 . 3 . 4 . . 1 . . 1 1 . 7 Power 3 | . . . . . . 1 . . . . 1 . . . . . . . . . . 1 . . Propulsion 11 | . . 2 . . . 2 . . . 2 . . 1 . 2 . . . . . . . . 2 Utility 11 | . . . . . . . . . . . 1 . 2 . 2 . . 1 . . . . . 5 Weapon 2 | . . 1 . . . . . . . . . . . . . . . . . . 1 . . . Highest Loss Streak 4 | . . 2 . . . 2 . . . 1 1 . 3 . 2 . . 1 . . 1 1 . 4 To Critical Strikes . | . . . . . . . . . . . . . . . . . . . . . . . . . Average Backups 4 | 2 4 4 4 4 3 4 4 3 3 3 4 5 4 5 4 4 4 5 5 5 4 4 3 4 Power . | 1 . . . . . . . . . . . . . 1 . . . 1 1 1 1 . . . Propulsion . | . . . 1 1 . 1 1 1 . . . 2 1 1 . . . . 1 1 1 . 1 . Utility 1 | . 1 1 . . 1 1 . . . 1 1 1 1 1 1 2 2 1 1 1 . . . 1 Weapon 2 | . 2 3 3 3 2 1 2 1 2 1 2 1 2 1 1 2 2 1 2 2 1 1 1 1 Tool/Special . | . . . . . . . . . . . . . . . . . . . . . . . . . Unused Backups 8 | . 1 1 1 . . 1 . 1 . . . . . . 1 . . . . . . 1 . 1 Power 2 | . 1 . . . . . . . . . . . . . 1 . . . . . . . . . Propulsion 1 | . . . . . . . . . . . . . . . . . . . . . . . . 1 Utility 2 | . . . 1 . . . . . . . . . . . . . . . . . . 1 . . Weapon 1 | . . 1 . . . . . . . . . . . . . . . . . . . . . . Tool/Special 2 | . . . . . . 1 . 1 . . . . . . . . . . . . . . . . Average Slot Usage (%) 90 | . 74 88 98 83 84 79 89 90 97 97 96 99 94 99 97 92 80 94 100 100 98 90 87 84 Engine 2 | . 8 8 14 . 7 3 . . . . . . . . . . 1 8 5 5 5 2 . . Core 3 | . . . . . . 4 9 9 7 7 6 6 5 5 5 4 . . 5 5 5 1 . . Reactor 1 | . . . . . . . . . . . . . . . . . . . . . . 5 7 8 Flight 24 | . 21 22 28 28 27 26 27 27 28 29 24 26 23 23 22 22 16 21 26 26 26 23 23 23 Device 6 | . . . . . 15 16 17 10 7 7 8 6 5 2 2 . 3 . 1 . . 8 4 7 Processor 3 | . 19 28 28 14 7 . . . . . . . . . . . . . . . . . 8 8 Hackware 30 | . . . . . 4 9 17 27 30 36 38 39 41 48 48 46 47 46 47 47 45 37 30 25 Protection 5 | . . . . 13 9 10 9 7 6 1 3 6 4 5 5 4 . 3 3 5 5 4 7 8 Ballistic Gun 1 | . 18 21 25 16 . . . . . . . . . . . . . . . . . . . . Special Weapon 3 | . 4 5 . . 3 . . 3 7 6 5 5 5 4 4 5 5 4 5 5 . . . . Impact Weapon 2 | . . . . 10 4 . . 1 . . 5 5 5 4 4 4 5 4 5 . 4 2 . . Slashing Weapon 2 | . . . . . 4 5 8 3 6 6 . . . . . . . . . . . . 3 3 Peak Build Rating 169 | 3 8 8 26 13 36 48 46 48 45 52 66 67 83 81 84 84 88 92 96 101 105 138 152 169 Average Rating 66 | 1 5 7 9 10 28 36 39 38 44 44 57 65 76 78 80 77 76 89 95 97 98 123 145 158 On Entrance 59 | . 2 8 8 10 12 36 37 41 38 44 42 63 66 80 81 75 69 88 92 96 101 97 137 152 Avg Prop Armor Cover (%) 2 | . . . . . 3 . . . 1 . . . . . . . 2 . . . . . 5 . Naked Turns 22 | . 22 . . . . . . . . . . . . . . . . . . . . . . . Heaviest Build 49 | 7 8 7 5 8 21 24 21 20 19 19 20 20 22 28 25 21 12 23 22 26 26 36 37 49 Greatest Support 66 | 3 8 8 8 8 21 21 22 22 27 30 42 20 35 34 34 32 22 36 26 26 36 48 60 66 Greatest Overweight (x) 12 | 2 . . . . . 1 1 1 . . 1 . . 1 1 . . 1 . . . . 12 . Average Overweight (x) . | . . . . . . . . . . . . . . . . . . . . . . . . . Largest Inventory Capacity 5 | 5 5 5 5 5 5 5 5 5 5 5 5 5 5 5 5 5 5 5 5 5 5 5 5 5 Average Capacity 5 | 5 5 5 5 5 5 5 5 5 5 5 5 5 5 5 5 5 5 5 5 5 5 5 5 5 Most Carried 5 | 5 5 5 5 5 5 5 5 5 5 5 5 5 5 5 5 5 5 5 5 5 5 5 5 5 Average Carried 4 | 2 4 4 4 5 4 4 4 4 4 4 4 4 4 5 4 4 4 4 5 5 4 4 4 4 Final Capacity 5 | 5 5 5 5 5 5 5 5 5 5 5 5 5 5 5 5 5 5 5 5 5 5 5 5 5 Final Carried 5 | 4 5 5 5 5 5 5 5 5 5 5 5 5 5 5 4 4 5 5 5 5 5 4 5 5 Class Distribution -------------------- 35% | Hacker-Sprinter 31% | Wizard-Sprinter 12% | Mutant 7% | Sprinter Dominant Class ---------------- Mutant | -10/Materials Mutant | -10/Mines Scavenger-Mutant | -10/Exiles Mutant | -9/Mines Sprinter | -8/Materials Sprinter | -8/Garrison Hacker-Sprinter | -8/Materials Hacker-Sprinter | -8/Garrison Scavenger-Sprinter | -7/Factory Hacker-Sprinter | -7/Garrison Hacker-Sprinter | -6/Factory Hacker-Sprinter | -6/Garrison Hacker-Sprinter | -5/Factory Hacker-Sprinter | -5/Garrison Hacker-Sprinter | -5/Factory Botlord-Sprinter | -5/Garrison Wizard-Sprinter | -4/Factory Wizard-Sprinter | -4/Extension Wizard-Sprinter | -4/Cetus Wizard-Sprinter | -4/Archives Wizard-Sprinter | -4/Hub_04(d) Wizard-Sprinter | -3/Research Wizard-Sprinter | -2/Research Wizard-Sprinter | -1/Access Resources | -11 -10 -10 -10 -9 -8 -8 -8 -8 -7 -7 -6 -6 -5 -5 -5 -5 -4 -4 -4 -4 -4 -3 -2 -1 ----------- Run | Yrd Mat Min Exi Min Mat Gar Mat Gar Fac Gar Fac Gar Fac Gar Fac Gar Fac Ext Cet Arc Hub Res Res Acc Matter Collected 4885 | 256 188 145 . 60 130 407 171 309 171 314 393 . 257 244 229 167 273 534 27 23 82 166 146 193 Remotely . | . . . . . . . . . . . . . . . . . . . . . . . . . Salvage Created 7746 | 99 173 264 . 83 195 676 548 546 26 321 597 40 505 398 257 151 358 629 . 302 375 216 616 371 Parts 320 | 15 12 13 . . 10 41 25 35 1 12 18 6 5 11 13 2 . 23 . 14 10 5 23 26 Haulers Intercepted 13 | . 2 . . . 2 . 4 . . . . . . . . . . . . . . 1 4 . Recyclers Shooed 4 | 1 . 1 . . . . 1 . . . 1 . . . . . . . . . . . . . Parts Field Recycled . | . . . . . . . . . . . . . . . . . . . . . . . . . Retrieved Matter . | . . . . . . . . . . . . . . . . . . . . . . . . . Parts Self-Destructed . | . . . . . . . . . . . . . . . . . . . . . . . . . Prevented . | . . . . . . . . . . . . . . . . . . . . . . . . . Parts Restored . | . . . . . . . . . . . . . . . . . . . . . . . . . Kills | -11 -10 -10 -10 -9 -8 -8 -8 -8 -7 -7 -6 -6 -5 -5 -5 -5 -4 -4 -4 -4 -4 -3 -2 -1 ------- Run | Yrd Mat Min Exi Min Mat Gar Mat Gar Fac Gar Fac Gar Fac Gar Fac Gar Fac Ext Cet Arc Hub Res Res Acc Combat Hostiles Destroyed 123 | . 3 5 . . 1 18 7 20 . 7 6 4 1 6 7 4 . 12 . . 6 . 2 14 Melee 35 | . . . . . 1 5 6 8 . . 4 . 1 1 . 3 . 2 . . . . 2 2 Guns 26 | . 3 5 . . . 9 1 5 . 3 . . . . . . . . . . . . . . AOE 54 | . . . . . . 4 . 6 . 4 . 4 . 3 7 . . 8 . . 6 . . 12 Classes Destroyed 17 | 1 3 3 . . 2 2 . . . . . . 1 1 . . . 2 . . 1 1 . . Worker 11 | . . . . . . . . . . . . . 1 . 1 . 2 1 . . 1 2 . 3 Builder 2 | . . . . . . . . . . . . . . . . . . 2 . . . . . . Tunneler 7 | 5 . . . . . . . . . . . . . . 1 . 1 . . . . . . . Hauler 13 | . 2 . . . 2 . 4 . . . . . . . . . . . . . . 1 4 . Recycler 14 | . . 2 . 1 . . 1 . . . 2 . 3 . 1 . 2 1 . . . . . 1 Mechanic 1 | . . . . . . . . . . . . . . . . . . . . . . 1 . . Operator 14 | . 1 . . . 1 . . . 1 . . . . . 1 . . 1 . 7 . 1 1 . Watcher 17 | . . . . . 2 . 1 . . . 4 . 2 1 2 . 1 2 . . . 1 1 . Swarmer 67 | . 3 3 . . . 6 4 11 . 3 . 4 . 3 7 2 . 7 . . . . . 14 Cutter 5 | . . . . . . 2 . . . . . . . . . . . . . . 3 . . . Grunt 23 | . . 1 . . . 4 . 5 . 2 1 . . 1 . 2 . 3 . . 3 . 1 . Duelist 1 | . . . . . . . . . . . . . . 1 . . . . . . . . . . Sentry 15 | . . . . . 1 3 3 2 . 2 . . . 3 . . . 1 . . . . . . Demolisher 1 | . . 1 . . . . . . . . . . . . . . . . . . . . . . Hunter 2 | . . . . . . . . . . . . . . . . . . 1 . . 1 . . . Programmer 12 | . . . . . . 3 . 2 . . 5 . 1 . . . . . . . . . 1 . Thug 1 | . . . . . . . . . . . . . . . . . . . . . 1 . . . Savage 1 | . . . . . . . . . . . . . . . . . . . . . 1 . . . Guerrilla 1 | . . . . . . . . . . . . . . . . . . . . 1 . . . . Best Kill Streak 10 | 5 3 3 . 1 3 3 3 10 1 3 3 4 2 3 4 2 2 4 . 2 7 2 2 10 Combat Bots Only 7 | . 3 3 . . 1 3 2 7 . 3 1 4 1 3 4 2 . 4 . . 6 . 1 7 Max Kills in Single Turn 5 | 1 1 1 . 1 1 2 1 2 1 2 1 3 1 2 3 1 1 4 . 1 5 1 1 4 Gunslinging . | . . . . . . . . . . . . . . . . . . . . . . . . . Exploded 4 | . . . . . . 2 . 2 . 2 . 3 . 2 3 . . 4 . . 3 . . 3 Melee 1 | . . . . . 1 1 1 1 . . 1 . 1 1 . 1 . 1 . . . . 1 1 Uniques/NPCs Destroyed . | . . . . . . . . . . . . . . . . . . . . . . . . . Combat | -11 -10 -10 -10 -9 -8 -8 -8 -8 -7 -7 -6 -6 -5 -5 -5 -5 -4 -4 -4 -4 -4 -3 -2 -1 -------- Run | Yrd Mat Min Exi Min Mat Gar Mat Gar Fac Gar Fac Gar Fac Gar Fac Gar Fac Ext Cet Arc Hub Res Res Acc Hostile Shots Fired 544 | . 16 17 . 6 15 64 16 36 . 41 52 6 12 6 19 37 . 21 1 . 10 19 17 133 Missed 238 | . 7 6 . 3 6 24 4 16 . 18 20 4 6 . 8 12 . 15 . . 6 10 8 65 Hits 306 | . 9 11 . 3 9 40 12 20 . 23 32 2 6 6 11 25 . 6 1 . 4 9 9 68 Melee 12 | . . . . . . 7 . . . . . . . . . 5 . . . . . . . . Projectile 294 | . 9 11 . 3 9 33 12 20 . 23 32 2 6 6 11 20 . 6 1 . 4 9 9 68 AOE 10 | . . 5 . . . . . . . . . . 4 . . 1 . . . . . . . . Critical Strikes 16 | . . . . . . 6 . 1 . 2 2 . . . 1 2 . . . . . . . 2 Damage Taken 5426 | . 103 233 . 35 134 643 121 151 . 282 484 25 396 87 202 428 . 186 25 . 172 334 208 1177 Core 1030 | . 46 79 . 13 30 62 20 67 . 28 109 13 39 13 21 108 . 61 . . . 79 73 169 Absorbed by Shields 214 | . . . . . . . . 65 . 38 . 4 . . . 46 . 36 25 . . . . . Regen/Repaired (Parts) 771 | . . . . . . . . . 41 . 145 . 18 . 86 . 41 . . . . 299 141 . Core Remaining (%) 84 | 100 . . . 44 . . . 67 . 96 . 85 . . . 81 . . . . 94 93 94 89 Volleys Fired 309 | 12 20 22 . . 8 3 2 6 6 15 19 7 2 30 10 10 8 47 1 40 20 9 . 12 Largest 2 | 2 2 2 . . 1 1 1 1 1 1 1 1 1 1 1 1 1 1 1 1 1 1 . 1 Hottest 120 | 40 100 100 . . 100 30 30 30 5 30 5 105 5 105 43 105 7 105 7 35 43 105 . 120 Shots Fired 423 | 24 34 38 . . 8 48 3 18 6 28 20 7 2 30 10 10 8 47 1 40 20 9 . 12 Gun 161 | 24 28 37 . . . 45 1 12 . 13 1 . . . . . . . . . . . . . Cannon 92 | . . . . . . . . . . . . 4 . 4 5 6 . 2 . 40 18 9 . 4 Launcher 42 | . . . . . . 3 2 5 . 10 . 2 . 4 3 . . 3 . . 2 . . 8 Special 128 | . 6 1 . . 8 . . 1 6 5 19 1 2 22 2 4 8 42 1 . . . . . Kinetic 89 | 24 28 37 . . . . . . . . . . . . . . . . . . . . . . Thermal 179 | . 6 1 . . 8 45 1 12 . 13 1 4 . 4 5 6 . 2 . 40 18 9 . 4 Explosive 42 | . . . . . . 3 2 5 . 10 . 2 . 4 3 . . 3 . . 2 . . 8 Electromagnetic . | . . . . . . . . . . . . . . . . . . . . . . . . . Robot Hit Streak 28 | 4 12 6 . . . 16 19 28 10 11 18 5 1 8 7 1 3 9 2 5 2 1 . 4 Robot Miss Streak 3 | 3 2 2 . . . 2 . 1 . 1 2 . 1 2 . 1 1 2 . 3 . 2 . 2 Penetration Max . | . . . . . . . . . . . . . . . . . . . . . . . . . Secondary Targets 1 | . . 1 . . . . . . . . . . . . . . . . . . . . . . Max Gunslinging Chain 1 | . . 1 . . . . . . . . . . . . . . . . . . . . . . Autonomous 73 | . . . . . . 45 1 12 . 13 2 . . . . . . . . . . . . . Shots Hit Robots 435 | 13 21 27 . 1 12 54 23 33 9 26 39 1 9 26 10 7 13 50 1 25 3 6 15 11 Core Hits 207 | 6 8 14 . . 2 22 11 19 . 14 4 4 1 5 10 2 1 14 . 12 24 3 8 23 Critical Kills 9 | . . 1 . . 1 . . 1 . . 2 . . . 1 . . 1 . 1 . 1 . . Critical Parts Destroyed 30 | . . . . . 1 . . 1 . . 11 . 3 5 2 3 1 2 . . . 1 . . Critical Strikes 51 | . . 1 . . 3 3 2 4 . . 13 . 3 5 3 3 1 3 . 1 . 2 3 1 Meltdown 2 | . . . . . . . . . . . . . . . . . . . . 1 . 1 . . Destroy 1 | . . 1 . . . . . . . . . . . . . . . . . . . . . . Smash 36 | . . . . . 2 . . 2 . . 13 . 3 5 3 3 1 3 . . . 1 . . Sever 12 | . . . . . 1 3 2 2 . . . . . . . . . . . . . . 3 1 Melee Attacks 457 | . . . . 1 36 49 46 35 10 11 57 2 25 16 27 13 22 16 1 . 5 14 43 28 Impact 212 | . . . . 1 16 . . 6 . . 55 2 25 16 27 13 22 16 1 . 5 7 . . Slashing 237 | . . . . . 20 49 46 21 10 11 2 . . . . . . . . . . 7 43 28 Piercing . | . . . . . . . . . . . . . . . . . . . . . . . . . Sneak Attacks 54 | . . . . 1 3 1 5 3 2 . 2 . 4 4 3 1 6 6 . . 1 4 6 2 Combat Hostiles 4 | . . . . . . . 1 . . . . . . 1 . 1 . . . . . . 1 . Follow-up Attacks . | . . . . . . . . . . . . . . . . . . . . . . . . . Damage Inflicted 22621 | 139 228 268 . 61 818 2531 1372 1341 183 1139 1568 344 662 961 1404 378 629 1907 . 899 1150 788 1728 2123 Guns 2354 | 139 228 268 . . . 995 28 292 . 366 38 . . . . . . . . . . . . . Cannons 931 | . . . . . . . . . . . . . . . . . . . . 899 . 32 . . Explosions 6208 | . . . . . . 277 70 332 . 566 . 344 . 434 781 . . 861 . . 1082 . . 1461 Melee 13128 | . . . . 61 818 1259 1274 717 183 207 1530 . 662 527 623 378 629 1046 . . 68 756 1728 662 Ramming . | . . . . . . . . . . . . . . . . . . . . . . . . . Kinetic 635 | 139 228 268 . . . . . . . . . . . . . . . . . . . . . . Thermal 2650 | . . . . . . 995 28 292 . 366 38 . . . . . . . . 899 . 32 . . Explosive 6208 | . . . . . . 277 70 332 . 566 . 344 . 434 781 . . 861 . . 1082 . . 1461 Electromagnetic . | . . . . . . . . . . . . . . . . . . . . . . . . . Impact 6262 | . . . . 61 515 . . 125 . . 1530 . 662 527 623 378 629 1046 . . 68 98 . . Slashing 6866 | . . . . . 303 1259 1274 592 183 207 . . . . . . . . . . . 658 1728 662 Piercing . | . . . . . . . . . . . . . . . . . . . . . . . . . Highest Corruption 12 | . . . . . . 1 1 1 . . 5 5 2 2 2 2 . . . . . 1 2 12 Average Corruption 2 | . . . . . . 1 1 1 . . 2 5 1 2 2 2 . . . . . 1 1 11 Corruption Purged 1 | . . . . . . . . . . . . . . . . . . . . . . 1 . . Corruption Blocked . | . . . . . . . . . . . . . . . . . . . . . . . . . Effects 56 | . . . . . . 3 5 6 . . 8 7 2 9 7 1 . . . . . 2 1 5 Message Errors 18 | . . . . . . 1 3 1 . . 2 2 1 3 3 . . . . . . . . 2 Matter Fused 17 | . . . . . . 2 2 3 . . 1 1 1 4 . . . . . . . 1 1 1 Heat Flow Errors 4 | . . . . . . . . . . . 1 2 . . 1 . . . . . . . . . Energy Discharges 5 | . . . . . . . . . . . 2 . . 1 1 . . . . . . 1 . . Parts Fused 1 | . . . . . . . . . . . . . . . . 1 . . . . . . . . Data Loss (minor) 5 | . . . . . . . . 2 . . . 2 . . . . . . . . . . . 1 Data Loss (major) 4 | . . . . . . . . . . . 1 . . 1 2 . . . . . . . . . Alerts 1 | . . . . . . . . . . . 1 . . . . . . . . . . . . . Misdirections 1 | . . . . . . . . . . . . . . . . . . . . . . . . 1 Overload Shots 8 | . . . . . . . . . . . . 1 . 3 . 2 . 1 . . . 1 . . Effects 2 | . . . . . . . . . . . . . . 1 . 1 . . . . . . . . Energy Bleed 1 | . . . . . . . . . . . . . . . . 1 . . . . . . . . Heat Surge 1 | . . . . . . . . . . . . . . 1 . . . . . . . . . . Overflow Damage 4869 | . . . . 36 297 125 125 137 52 28 844 1 497 419 442 206 364 629 . 51 67 212 51 286 Projectiles 55 | . . . . . . . . . . . 4 . . . . . . . . 51 . . . . Explosions 337 | . . . . . . . . . . 28 . 1 . 49 87 . . 76 . . 67 . . 29 Melee 4477 | . . . . 36 297 125 125 137 52 . 840 . 497 370 355 206 364 553 . . . 212 51 257 Knockbacks 21 | . . . . . . . . . . . 9 . 4 . 1 1 2 4 . . . . . . Impact 20 | . . . . . . . . . . . 8 . 4 . 1 1 2 4 . . . . . . Kinetic . | . . . . . . . . . . . . . . . . . . . . . . . . . Secondary 1 | . . . . . . . . . . . 1 . . . . . . . . . . . . . Self-Inflicted Damage 144 | . . . . . . . . . . 9 . . . . . . . . . . 100 . . 35 Shots 3 | . . . . . . . . . . 1 . . . . . . . . . . 1 . . 1 Rammed . | . . . . . . . . . . . . . . . . . . . . . . . . . Targets Rammed . | . . . . . . . . . . . . . . . . . . . . . . . . . Kicked . | . . . . . . . . . . . . . . . . . . . . . . . . . Crushed . | . . . . . . . . . . . . . . . . . . . . . . . . . Highest Temperature 337 | . 76 30 . . 12 13 2 11 . 13 209 178 18 168 267 108 . 62 . 3 8 59 247 337 Average Temperature 60 | . 16 7 . . 4 7 1 6 . 5 79 86 11 59 81 53 . 26 . 3 4 18 49 90 Received Heat Transfer 483 | . 45 9 . 21 36 27 18 56 . 106 9 . 48 9 9 30 . 18 . . 21 21 . . Effects 1 | . . . . . . . . . . . . . . . . . . . . . . . 1 . Energy Bleed 1 | . . . . . . . . . . . . . . . . . . . . . . . 1 . Siege Activations . | . . . . . . . . . . . . . . . . . . . . . . . . . Martial Activations . | . . . . . . . . . . . . . . . . . . . . . . . . . Shielding Activations . | . . . . . . . . . . . . . . . . . . . . . . . . . Robots Disrupted . | . . . . . . . . . . . . . . . . . . . . . . . . . Combat Hostiles . | . . . . . . . . . . . . . . . . . . . . . . . . . Robots Corrupted 24 | . . . . 1 1 . . . . . 4 . 4 4 1 1 3 5 . . . . . . Combat Hostiles 7 | . . . . . . . . . . . 2 . . 2 . 1 . 2 . . . . . . Parts Fried 42 | . . . . 2 5 . . . . . 9 . 5 3 4 1 4 8 . . . 1 . . Impact Corruptions 94 | . . . . 2 8 . . 2 . . 27 . 12 6 8 3 11 14 . . . 1 . . Robots Melted 3 | . . . . . . . . 1 . . . . . . . . . . . 1 . 1 . . Combat Hostiles 1 | . . . . . . . . 1 . . . . . . . . . . . . . . . . Parts Melted 16 | . . . . . 1 2 . 3 . 1 1 . . . . . . . . 7 . 1 . . Heat Transferred 3577 | . . . . . . 1239 37 370 . 444 37 . . . . . . . . 1400 . 50 . . Parts Sabotaged 2 | . . . . . . . . . . . . . . . . 2 . . . . . . . . Parts Stolen . | . . . . . . . . . . . . . . . . . . . . . . . . . Parts Stripped . | . . . . . . . . . . . . . . . . . . . . . . . . . Power Chain Reactions . | . . . . . . . . . . . . . . . . . . . . . . . . . Alert | -11 -10 -10 -10 -9 -8 -8 -8 -8 -7 -7 -6 -6 -5 -5 -5 -5 -4 -4 -4 -4 -4 -3 -2 -1 ------- Run | Yrd Mat Min Exi Min Mat Gar Mat Gar Fac Gar Fac Gar Fac Gar Fac Gar Fac Ext Cet Arc Hub Res Res Acc Maximum Alert Level 3 | . 1 . . . . 2 1 3 2 3 1 1 . 2 1 1 . 1 1 1 1 . . 1 Low Security (%) 60 | 100 58 100 . 100 100 30 77 3 . . 28 12 100 25 86 40 100 76 69 45 69 100 100 61 Level 1 24 | . 41 . . . . 23 22 7 36 8 71 87 . 49 13 59 . 23 30 54 30 . . 38 Level 2 12 | . . . . . . 46 . 39 63 88 . . . 24 . . . . . . . . . . Level 3 3 | . . . . . . . . 50 . 2 . . . . . . . . . . . . . . Level 4 . | . . . . . . . . . . . . . . . . . . . . . . . . . Level 5 . | . . . . . . . . . . . . . . . . . . . . . . . . . High Security . | . . . . . . . . . . . . . . . . . . . . . . . . . Max Security . | . . . . . . . . . . . . . . . . . . . . . . . . . Peak Influence 964 | 15 229 78 . 15 105 670 386 964 516 728 384 237 123 488 245 341 168 297 222 227 319 176 54 388 Initial 506 | . 3 78 . . 5 24 326 83 506 276 382 81 123 28 245 140 168 5 148 71 71 168 49 32 Average 198 | 3 145 29 . . 31 379 167 634 438 534 220 220 48 289 110 207 45 107 181 190 138 104 11 144 Influence Increases 8728 | 25 331 161 . 20 284 676 398 921 199 532 428 156 149 580 451 241 85 832 320 244 615 176 256 648 Destroy 0b10 Robot/C 2860 | . 60 100 . . 20 360 140 460 60 160 120 80 20 170 120 75 . 345 120 60 150 . 30 210 Destroy 0b10 Robot/NC 392 | 25 15 10 . 5 25 15 30 . 5 5 30 . 30 5 24 . 24 40 8 28 4 24 24 16 Destroy Leader 426 | . 14 20 . . 18 30 60 20 10 20 58 . 14 18 20 8 2 36 . . 32 4 18 24 Allied During Kill 628 | . . . . . . . . 19 . 1 . . . 27 17 2 . 287 128 88 59 . . . Trap Triggered on 0b10 20 | . . . . . . 20 . . . . . . . . . . . . . . . . . . Successful Hack 322 | . 12 . . . 16 12 14 24 58 . 92 8 14 . 12 . 21 . . . . . 22 17 Select Force Hacks 68 | . 30 . . . . . . . . . . . . . . . . . . . 38 . . . Disable Machine 417 | . 15 . . . . 75 . 30 . . 30 . . 15 48 12 . 36 . 48 84 . . 24 Anti-Garrison Action 676 | . . . . . . 50 . 200 . 200 . 50 . 138 . 38 . . . . . . . . Destroy Structure 1158 | . 5 1 . . 25 69 34 33 6 41 23 18 26 60 126 10 26 88 52 8 200 28 78 201 Partial Spotted 552 | . . . . . 30 15 75 . 60 30 30 . 15 45 36 24 12 . . 12 36 60 24 48 Lose Combat Pursuer 1209 | . 180 30 . 15 150 30 45 135 . 75 45 . 30 102 48 72 . . 12 . 12 60 60 108 Influence Decreases 8374 | 20 135 335 27 5 262 43 940 85 768 199 1040 35 346 152 719 120 394 579 407 217 499 409 290 348 Entered New Map 2663 | . 2 123 27 . 10 13 344 45 458 119 346 35 114 12 223 60 153 7 117 107 134 153 39 22 Time Decay 3620 | 20 133 192 . 5 252 . 286 . 140 . 474 . 207 . 246 . 241 341 150 90 100 246 251 246 Lost Part 225 | . . 20 . . . 30 . . . 20 20 . 5 . 40 . . . . . 10 10 . 70 Lost Ally 816 | . . . . . . . 10 40 20 60 50 . 20 140 60 60 . 81 140 20 105 . . 10 Purge Threat 1050 | . . . . . . . 300 . 150 . 150 . . . 150 . . 150 . . 150 . . . Squads Dispatched 47 | . 6 . . . 2 . . . 2 . 8 . 4 . 4 . 4 2 . . 5 5 4 1 Investigation 12 | . 4 . . . . . . . . . 3 . . . 1 . 1 . . . 2 1 . . Extermination 15 | . . . . . . . . . 1 . 4 . 2 . 3 . 2 . . . . . 2 1 Reinforcement 17 | . 2 . . . 2 . . . 1 . 1 . . . . . 1 2 . . 2 4 2 . Assault 2 | . . . . . . . . . . . . . 2 . . . . . . . . . . . Garrison 1 | . . . . . . . . . . . . . . . . . . . . . 1 . . . Intercept . | . . . . . . . . . . . . . . . . . . . . . . . . . Searches Triggered . | . . . . . . . . . . . . . . . . . . . . . . . . . Unchained Authorized 2 | . . . . . . . . . . . . . . . . . . . . . . . 1 1 Construction Impeded 2 | . . . . . . . . . . . . . . . . . . 2 . . . . . . Haulers Reinforced 2 | . . . . . . . . . . . . . . . . . . . . . . 1 1 . Active Scanning Responses . | . . . . . . . . . . . . . . . . . . . . . . . . . Cargo Convoy Interrupts . | . . . . . . . . . . . . . . . . . . . . . . . . . Stealth | -11 -10 -10 -10 -9 -8 -8 -8 -8 -7 -7 -6 -6 -5 -5 -5 -5 -4 -4 -4 -4 -4 -3 -2 -1 --------- Run | Yrd Mat Min Exi Min Mat Gar Mat Gar Fac Gar Fac Gar Fac Gar Fac Gar Fac Ext Cet Arc Hub Res Res Acc Distress Signals 29 | . 2 3 . . 2 . 3 . 3 . 1 . . . 1 . . 2 2 . 1 5 2 2 Communications Jammed 1 | . . . . . . . . . . . . . . . . . . . . . . . . 1 Distress Signals 1 | . . . . . . . . . . . . . . . . . . . . . . . . 1 Times Spotted 342 | . 21 6 . 3 15 22 17 30 3 16 23 4 8 13 16 25 4 24 9 15 16 13 12 27 Peak Tracking Total 11 | . 7 3 . 3 5 4 6 5 3 4 4 4 3 8 5 11 2 5 5 1 9 6 7 9 Tactical Retreats 50 | . 5 1 . 1 6 2 1 4 . 2 2 . 1 5 3 3 . . 1 . 1 2 4 6 Traps | -11 -10 -10 -10 -9 -8 -8 -8 -8 -7 -7 -6 -6 -5 -5 -5 -5 -4 -4 -4 -4 -4 -3 -2 -1 ------- Run | Yrd Mat Min Exi Min Mat Gar Mat Gar Fac Gar Fac Gar Fac Gar Fac Gar Fac Ext Cet Arc Hub Res Res Acc Traps Triggered 33 | . 1 . . . . 9 . 4 . 8 1 1 . 1 1 2 . 3 . . . 1 1 . Indirectly . | . . . . . . . . . . . . . . . . . . . . . . . . . Trap Hack Attempts . | . . . . . . . . . . . . . . . . . . . . . . . . . Triggered . | . . . . . . . . . . . . . . . . . . . . . . . . . Disarmed 6 | . . . . . . . . . . . . . . . . . . 6 . . . . . . Reprogrammed . | . . . . . . . . . . . . . . . . . . . . . . . . . Reused 2 | . . . . . . 2 . . . . . . . . . . . . . . . . . . Traps Extracted . | . . . . . . . . . . . . . . . . . . . . . . . . . Installed 3 | . . . . . . 3 . . . . . . . . . . . . . . . . . . Triggered 2 | . . . . . . 2 . . . . . . . . . . . . . . . . . . Most Traps Carried 4 | . . . . . . 4 . . . . . . . . . . . . . . . . . . Machines | -11 -10 -10 -10 -9 -8 -8 -8 -8 -7 -7 -6 -6 -5 -5 -5 -5 -4 -4 -4 -4 -4 -3 -2 -1 ---------- Run | Yrd Mat Min Exi Min Mat Gar Mat Gar Fac Gar Fac Gar Fac Gar Fac Gar Fac Ext Cet Arc Hub Res Res Acc Machines Disabled 47 | . 1 . . . . 6 . 6 . 5 2 1 . 4 4 2 . 3 . 4 7 . . 2 Max in Single Turn 6 | . 1 . . . . 1 . 1 . 1 1 1 . 1 4 1 . 1 . 1 6 . . 1 Garrison Access 6 | . . . . . . . . . . . 1 . 1 . 1 . . . . . . . 2 1 Garrison Relay 15 | . . . . . . 1 . 4 . 5 . 1 . 3 . 1 . . . . . . . . Phase Generator 1 | . . . . . . 1 . . . . . . . . . . . . . . . . . . Network Hub 2 | . . . . . . . . . . . . . . . . . . . . . 2 . . . Machines Repaired . | . . . . . . . . . . . . . . . . . . . . . . . . . Machines Dismantled . | . . . . . . . . . . . . . . . . . . . . . . . . . Machines Sabotaged 1 | . . . . . . . . . . . . . . . . . . . . . 1 . . . Overloaded Fab Kills . | . . . . . . . . . . . . . . . . . . . . . . . . . Hacking | -11 -10 -10 -10 -9 -8 -8 -8 -8 -7 -7 -6 -6 -5 -5 -5 -5 -4 -4 -4 -4 -4 -3 -2 -1 --------- Run | Yrd Mat Min Exi Min Mat Gar Mat Gar Fac Gar Fac Gar Fac Gar Fac Gar Fac Ext Cet Arc Hub Res Res Acc Machines Accessed 118 | . 7 . . . 9 2 9 3 12 2 21 1 9 . 10 . 7 8 1 . 4 4 6 3 Terminals 78 | . 5 . . . 6 2 7 3 7 2 13 1 5 . 4 . 4 8 1 . 4 1 3 2 Fabricators 5 | . . . . . . . . . . . 2 . 1 . 1 . 1 . . . . . . . Repair Stations 12 | . . . . . . . . . 3 . 3 . 1 . 2 . 1 . . . . 1 1 . Recycling Units 4 | . 2 . . . . . 1 . . . . . . . . . 1 . . . . . . . Scanalyzers 8 | . . . . . 2 . . . 1 . 1 . 1 . 1 . . . . . . 2 . . Garrison Access 11 | . . . . . 1 . 1 . 1 . 2 . 1 . 2 . . . . . . . 2 1 Total Hacks 302 | . 13 . . . 25 4 31 6 28 2 53 2 21 . 22 . 27 14 3 . 11 8 21 11 Successful 196 | . 5 . . . 17 1 17 2 16 2 35 2 14 . 15 . 18 12 1 . 8 6 18 7 Failed 104 | . 8 . . . 8 3 14 4 12 . 18 . 6 . 7 . 9 2 2 . 3 1 3 4 Catastrophic 9 | . . . . . . 3 2 1 . . 1 . . . . . 2 . . . . . . . Database Lockouts 2 | . . . . . . . . . . . . . 1 . . . . . . . . 1 . . Manual 142 | . 14 . 1 . 13 1 14 . 12 . 23 1 5 . 11 . 17 9 1 . 10 1 3 6 Terminals 205 | . 10 . . . 15 4 29 6 16 2 29 2 9 . 13 . 20 14 3 . 11 3 9 10 Fabricators 18 | . . . . . . . . . . . 8 . 5 . 2 . 3 . . . . . . . Repair Stations 39 | . . . . . . . . . 7 . 11 . 2 . 4 . 3 . . . . 2 10 . Recycling Units 5 | . 3 . . . . . 1 . . . . . . . . . 1 . . . . . . . Scanalyzers 24 | . . . . . 9 . . . 4 . 3 . 4 . 1 . . . . . . 3 . . Garrison Access 11 | . . . . . 1 . 1 . 1 . 2 . 1 . 2 . . . . . . . 2 1 Terminal Hacks 69 | . . . . . 2 1 7 2 2 2 6 2 3 . 7 . 11 6 1 . 4 2 6 5 Record 2 | . . . . . . . . . . . . . . . 1 . . . . . . . . 1 Part Schematic 4 | . . . . . . . . . . . 1 . . . 1 . 2 . . . . . . . Robot Analysis 2 | . . . . . . . 1 . . . . . . . . . . . . . . . 1 . Prototype ID Bank 3 | . . . . . . . . . . . . . 1 . . . 1 . . . . . 1 . Open Door 4 | . . . . . . . . . . 1 . . . . . . . 2 1 . . . . . Level Access Points 4 | . . . . . . . . . . . . . . . . . . . . . 1 1 1 1 Branch Access Points 2 | . . . . . . . 1 . . . . . . . . . . . . . . . . 1 Emergency Access Points 5 | . . . . . . 1 . 1 . 1 . 1 . . . . 1 . . . . . . . Machine Index 5 | . . . . . . . 1 . . . . . . . 1 . 1 . . . . 1 1 . Terminal Index 5 | . . . . . . . . . . . 1 . 1 . 1 . 1 . . . 1 . . . Garrison Index 1 | . . . . . . . . . . . . . 1 . . . . . . . . . . . Unreport Threat 7 | . . . . . . . 2 . 1 . 1 . . . 1 . . 1 . . 1 . . . Locate Traps 5 | . . . . . 1 . 1 . 1 . . . . . . . . 1 . . . . . 1 Disarm Traps 1 | . . . . . . . . . . . . . . . . . . 1 . . . . . . Recall Investigation 3 | . . . . . . . . . . . 1 . . . 1 . 1 . . . . . . . Recall Extermination 2 | . . . . . . . . . . . . . . . . . 1 . . . . . 1 . Hauler Manifests 7 | . . . . . 1 . 1 . . . 2 . . . 1 . 2 . . . . . . . Zone Layout 5 | . . . . . . . . . . . . . . . . . 1 1 . . 1 . 1 1 Garrison Registry 2 | . . . . . . . . 1 . . . 1 . . . . . . . . . . . . Fabricator Hacks 11 | . . . . . . . . . . . 4 . 3 . 2 . 2 . . . . . . . Network Status 2 | . . . . . . . . . . . 1 . 1 . . . . . . . . . . . Load Schematic 5 | . . . . . . . . . . . 2 . 1 . 1 . 1 . . . . . . . Build 4 | . . . . . . . . . . . 1 . 1 . 1 . 1 . . . . . . . Repair Station Hacks 35 | . . . . . . . . . 5 . 10 . 2 . 4 . 3 . . . . 2 9 . Scan Component 18 | . . . . . . . . . 3 . 5 . 1 . 2 . 1 . . . . 1 5 . Repair 16 | . . . . . . . . . 2 . 5 . 1 . 2 . 1 . . . . 1 4 . Refit 1 | . . . . . . . . . . . . . . . . . 1 . . . . . . . Recycling Unit Hacks 2 | . . . . . . . 1 . . . . . . . . . 1 . . . . . . . Retrieve Components 2 | . . . . . . . 1 . . . . . . . . . 1 . . . . . . . Scanalyzer 17 | . . . . . 8 . . . 3 . 2 . 2 . . . . . . . . 2 . . Insert Component 4 | . . . . . 3 . . . . . 1 . . . . . . . . . . . . . Analyze 4 | . . . . . 3 . . . . . 1 . . . . . . . . . . . . . Retrieve Study 9 | . . . . . 2 . . . 3 . . . 2 . . . . . . . . 2 . . Garrison Access Hacks 11 | . . . . . 1 . 1 . 1 . 2 . 1 . 2 . . . . . . . 2 1 Unlock Access 6 | . . . . . 1 . 1 . 1 . 1 . 1 . 1 . . . . . . . . . Seal Access 5 | . . . . . . . . . . . 1 . . . 1 . . . . . . . 2 1 Unauthorized Hacks 51 | . 5 . . . 6 . 8 . 5 . 11 . 3 . . . 1 6 . . 4 . 1 1 Terminals 46 | . 4 . . . 6 . 8 . 5 . 10 . 1 . . . . 6 . . 4 . 1 1 Track 1 | . . . . . . . . . . . . . . . . . . . . . . . 1 . Assimilate 9 | . . . . . . . 1 . . . 4 . 1 . . . . 1 . . 1 . . 1 Botnet 7 | . 1 . . . 1 . 2 . . . . . . . . . . 2 . . 1 . . . Skim 27 | . 3 . . . 5 . 5 . 5 . 6 . . . . . . 3 . . . . . . Sabotage 2 | . . . . . . . . . . . . . . . . . . . . . 2 . . . Fabricators 4 | . . . . . . . . . . . 1 . 2 . . . 1 . . . . . . . Prioritize 1 | . . . . . . . . . . . . . 1 . . . . . . . . . . . Haulers 2 | . . . . . . . . . . . . . 1 . . . 1 . . . . . . . Recompile 1 | . . . . . . . . . . . 1 . . . . . . . . . . . . . Repair Stations . | . . . . . . . . . . . . . . . . . . . . . . . . . Recycling Units 1 | . 1 . . . . . . . . . . . . . . . . . . . . . . . Tunnel 1 | . 1 . . . . . . . . . . . . . . . . . . . . . . . Scanalyzers . | . . . . . . . . . . . . . . . . . . . . . . . . . Garrison Access . | . . . . . . . . . . . . . . . . . . . . . . . . . Data Cores Recovered 2 | . . . . . . . . . . . . . . . 1 . . . . . . . 1 . Used . | . . . . . . . . . . . . . . . . . . . . . . . . . Hacking Detections 72 | . 5 . . . 6 2 4 2 11 2 13 . 6 . 7 . 5 1 . . 3 1 3 1 Full Trace Events 4 | . . . . . . . . . . . 2 . . . 1 . 1 . . . . . . . Feedback Events . | . . . . . . . . . . . . . . . . . . . . . . . . . Feedback Blocked . | . . . . . . . . . . . . . . . . . . . . . . . . . Robot Schematics Acquired . | . . . . . . . . . . . . . . . . . . . . . . . . . Robots Built . | . . . . . . . . . . . . . . . . . . . . . . . . . Authchips . | . . . . . . . . . . . . . . . . . . . . . . . . . Time . | . . . . . . . . . . . . . . . . . . . . . . . . . Total Robot Build Rating . | . . . . . . . . . . . . . . . . . . . . . . . . . Part Schematics Acquired 8 | . . . . . 3 . . . . . 2 . . . 1 . 2 . . . . . . . Parts Built 4 | . . . . . . . . . . . 1 . 1 . 1 . 1 . . . . . . . Authchips 1 | . . . . . . . . . . . . . 1 . . . . . . . . . . . Time 263 | . . . . . . . . . . . 76 . 76 . 44 . 67 . . . . . . . Total Part Build Rating 18 | . . . . . . . . . . . 5 . 5 . 4 . 4 . . . . . . . Part Studies Acquired 9 | . . . . . 2 . . . 3 . . . 2 . . . . . . . . 2 . . Parts Repaired 16 | . . . . . . . . . 2 . 5 . 1 . 2 . 1 . . . . 1 4 . Time 622 | . . . . . . . . . 57 . 171 . 80 . 65 . 40 . . . . 108 101 . Parts Recycled . | . . . . . . . . . . . . . . . . . . . . . . . . . Recycled Matter . | . . . . . . . . . . . . . . . . . . . . . . . . . Retrieved Matter . | . . . . . . . . . . . . . . . . . . . . . . . . . Retrieved Components 4 | . . . . . . . 3 . . . . . . . . . 1 . . . . . . . Parts Scanalyzed 4 | . . . . . 3 . . . . . 1 . . . . . . . . . . . . . Part Schematics Acquired 4 | . . . . . 3 . . . . . 1 . . . . . . . . . . . . . Parts Damaged 1 | . . . . . . . . . . . 1 . . . . . . . . . . . . . Bothacking | -11 -10 -10 -10 -9 -8 -8 -8 -8 -7 -7 -6 -6 -5 -5 -5 -5 -4 -4 -4 -4 -4 -3 -2 -1 ------------ Run | Yrd Mat Min Exi Min Mat Gar Mat Gar Fac Gar Fac Gar Fac Gar Fac Gar Fac Ext Cet Arc Hub Res Res Acc Used RIF Installer 7 | . . . . . . 2 . 1 . 1 . 2 . 1 . . . . . . . . . . Command Fork 1 | . . . . . . 1 . . . . . . . . . . . . . . . . . . Threat Obfuscator 1 | . . . . . . . . . . . . . . 1 . . . . . . . . . . Patrol Navigation 1 | . . . . . . . . . . 1 . . . . . . . . . . . . . . Structural Interface 1 | . . . . . . . . 1 . . . . . . . . . . . . . . . . Autooverride 1 | . . . . . . . . . . . . 1 . . . . . . . . . . . . Autoassimilate 1 | . . . . . . . . . . . . 1 . . . . . . . . . . . . Robots Hacked 52 | . . . . . . . . 4 4 4 12 . . 10 1 4 5 7 1 . . . . . Non-combat 19 | . . . . . . . . . 3 . 9 . . . 1 . 4 1 1 . . . . . Combat 33 | . . . . . . . . 4 1 4 3 . . 10 . 4 1 6 . . . . . . Autooverrided 4 | . . . . . . . . . . . . . . 1 . 1 . 2 . . . . . . Autoassimilated 5 | . . . . . . . . . . . . . . 3 . 2 . . . . . . . . Robot Hacks Applied 44 | . . . . . . . . 4 4 4 12 . . 7 1 1 5 5 1 . . . . . parse_system 1 | . . . . . . . . . . . 1 . . . . . . . . . . . . . find_chute 3 | . . . . . . . . . 1 . 1 . . . . . 1 . . . . . . . drop_inventory 11 | . . . . . . . . . 1 . 6 . . . 1 . 2 1 . . . . . . overload_power 2 | . . . . . . . . . 1 . . . . . . . . . 1 . . . . . amplify_resonance 5 | . . . . . . . . 1 . 2 1 . . 1 . . . . . . . . . . wipe_record 1 | . . . . . . . . . . . . . . 1 . . . . . . . . . . disable_weapons 1 | . . . . . . . . . . . 1 . . . . . . . . . . . . . overwrite_iff 6 | . . . . . . . . 1 . 2 1 . . 2 . . . . . . . . . . streamctrl_high 1 | . . . . . . . . . . . . . . 1 . . . . . . . . . . formatsys_low 1 | . . . . . . . . . . . 1 . . . . . . . . . . . . . formatsys_high 12 | . . . . . . . . 2 1 . . . . 2 . 1 2 4 . . . . . . Relay Couplers Released 62 | . . . . . . 4 . 14 . 20 . 4 2 14 . 4 . . . . . . . . Machine Destruction 62 | . . . . . . 4 . 14 . 20 . 4 2 14 . 4 . . . . . . . . Attached 17 | . . . . . . . . 5 . 4 1 1 1 2 . 2 . 1 . . . . . . Fabnet Peak Effective % . | . . . . . . . . . . . . . . . . . . . . . . . . . Robots Rewired 24 | . . . . . . . . . 1 . . . 1 6 . . . 16 . . . . . . Allies Hacked 5 | . . . . . . . . . . . 2 . . 3 . . . . . . . . . . Hacks Repelled 1 | . . . . . . . . . . . . . . 1 . . . . . . . . . . Allies | -11 -10 -10 -10 -9 -8 -8 -8 -8 -7 -7 -6 -6 -5 -5 -5 -5 -4 -4 -4 -4 -4 -3 -2 -1 -------- Run | Yrd Mat Min Exi Min Mat Gar Mat Gar Fac Gar Fac Gar Fac Gar Fac Gar Fac Ext Cet Arc Hub Res Res Acc Total Allies 79 | . . 3 . 2 . . 1 4 2 4 6 . 2 15 . 4 2 27 5 . 1 . . 1 Largest Group 16 | . . 3 . 2 . . 1 2 2 2 3 2 1 3 3 2 2 14 16 12 8 . . 1 Highest-Rated Group 1037 | . . 40 . 52 . . 10 45 48 62 75 49 64 123 36 58 57 716 1037 784 427 . . 45 Highest-Rated Ally 159 | . . 16 . 31 . . 10 29 32 31 29 26 64 49 12 29 47 159 159 159 96 . . 45 Total Orders 21 | . . . . . . . 1 2 . . 3 2 1 3 . . . 7 2 . . . . . STAY 8 | . . . . . . . 1 2 . . . 2 1 1 . . . 1 . . . . . . FOLLOW 12 | . . . . . . . . . . . 2 . . 2 . . . 6 2 . . . . . AID 1 | . . . . . . . . . . . 1 . . . . . . . . . . . . . Ally Attacks 334 | . . . . . . . . 19 8 9 2 . . 48 12 11 3 103 63 31 25 . . . Total Damage 9725 | . . . . . . . . 252 256 163 39 . . 1585 125 134 98 3106 2164 954 849 . . . Kills 46 | . . . . . . . . 3 3 1 . . . 3 1 1 . 15 10 5 4 . . . Allies Corrupted 2 | . . . . . . . . . . . . . . 2 . . . . . . . . . . Allies Melted 1 | . . . . . . . . . . . . . . . . . . . . 1 . . . . Intel | -11 -10 -10 -10 -9 -8 -8 -8 -8 -7 -7 -6 -6 -5 -5 -5 -5 -4 -4 -4 -4 -4 -3 -2 -1 ------- Run | Yrd Mat Min Exi Min Mat Gar Mat Gar Fac Gar Fac Gar Fac Gar Fac Gar Fac Ext Cet Arc Hub Res Res Acc Active Infowar (turns) 3097 | . 167 501 123 238 313 . 1 . . . . . . . . . 1 . . . 23 481 724 525 Optics 1342 | . 167 501 123 238 313 . . . . . . . . . . . . . . . . . . . Terrain 1 | . . . . . . . . . . . . . . . . . 1 . . . . . . . T.N.C. 1 | . . . . . . . 1 . . . . . . . . . . . . . . . . . Cloaking 738 | . . . . . . . . . . . . . . . . . . . . . . 253 . 485 Jamming 1630 | . . . . . . . . . . . . . . . . . . . . . 23 373 724 510 Robot Analysis Total 2 | . . . . . . . 1 . . . . . . . . . . . . . . . 1 . Derelict Logs Recovered 4 | . . 2 . 2 . . . . . . . . . . . . . . . . . . . . Drone Launches . | . . . . . . . . . . . . . . . . . . . . . . . . . Drone Recoveries . | . . . . . . . . . . . . . . . . . . . . . . . . . Exploration | -11 -10 -10 -10 -9 -8 -8 -8 -8 -7 -7 -6 -6 -5 -5 -5 -5 -4 -4 -4 -4 -4 -3 -2 -1 ------------- Run | Yrd Mat Min Exi Min Mat Gar Mat Gar Fac Gar Fac Gar Fac Gar Fac Gar Fac Ext Cet Arc Hub Res Res Acc Turns Passed 12669 | 81 319 501 123 238 682 1086 638 766 292 545 1208 398 472 431 525 172 804 904 311 182 203 532 731 525 Spaces Moved 22726 | 55 581 816 308 612 842 1677 898 1624 723 996 2646 348 1085 1031 1395 318 1248 1331 260 131 414 1013 1245 1129 Core 163 | 55 107 . . . . . . . . . . . . . . . . . . . . . 1 . Treads . | . . . . . . . . . . . . . . . . . . . . . . . . . Legs . | . . . . . . . . . . . . . . . . . . . . . . . . . Wheels . | . . . . . . . . . . . . . . . . . . . . . . . . . Hover . | . . . . . . . . . . . . . . . . . . . . . . . . . Flight 22563 | . 474 816 308 612 842 1677 898 1624 723 996 2646 348 1085 1031 1395 318 1248 1331 260 131 414 1013 1244 1129 Fastest Speed 5 | 50 37 37 37 37 32 23 29 29 26 27 14 26 24 12 12 12 26 11 23 23 11 15 5 6 Average Speed 28 | 65 39 38 37 37 33 37 29 29 27 27 26 26 24 23 24 23 31 25 23 23 22 24 25 21 Slowest Speed 650 | 150 50 40 37 37 37 105 92 92 29 29 69 26 26 94 93 29 32 98 23 23 23 25 650 26 Overloaded Moves 235 | . . . . . . 31 . . . . 13 . . 20 22 25 . 16 . . 10 16 37 45 Propulsion Burnouts . | . . . . . . . . . . . . . . . . . . . . . . . . . Robots Hopped 163 | . 8 13 . . 5 . 9 . 4 . 29 . 8 2 3 6 2 20 . 3 5 11 10 25 Potential Cave-ins 2 | . . . . . . . . . . . . . . . 2 . . . . . . . . . Cave-ins Triggered . | . . . . . . . . . . . . . . . . . . . . . . . . . Exploration Rate (%) 57 | 4 96 99 71 93 44 89 54 89 25 95 55 48 32 70 38 46 27 86 67 88 44 27 34 19 Regions Visited 24 Branch Regions 7 Pre-discovered Areas 9 | . 1 . . . 2 . 1 . 1 . 4 . . . . . . . . . . . . . Known Exits Taken 11 | . . . . . 1 . 1 . 1 . 1 . 1 . 1 . 1 . . 1 1 1 1 . Unknown Exits Taken 7 | 1 1 1 1 1 . . . . . . . . . . . . . 1 1 . . . . . Scrap Searched 3 | . . 1 . 2 . . . . . . . . . . . . . . . . . . . . Spaces Dug 214 | . 4 1 . . 21 3 22 3 6 2 23 1 13 5 29 5 13 . . . 9 11 26 17 Terrain Destroyed 737 | . 5 1 . . 25 17 38 35 6 63 23 37 13 25 69 9 13 37 . 2 195 16 26 82 Melee 182 | . . . . . 17 3 22 3 6 2 23 1 13 4 18 3 13 . . . 4 9 26 15 Projectile 56 | . 5 1 . . 8 . . . . . . 2 . 3 5 6 . . . 2 13 7 . 4 AOE 499 | . . . . . . 14 16 32 . 61 . 34 . 18 46 . . 37 . . 178 . . 63 Terrain Rammed . | . . . . . . . . . . . . . . . . . . . . . . . . . Walls Destroyed . | . . . . . . . . . . . . . . . . . . . . . . . . . Machines Disabled . | . . . . . . . . . . . . . . . . . . . . . . . . . Actions | -11 -10 -10 -10 -9 -8 -8 -8 -8 -7 -7 -6 -6 -5 -5 -5 -5 -4 -4 -4 -4 -4 -3 -2 -1 --------- Run | Yrd Mat Min Exi Min Mat Gar Mat Gar Fac Gar Fac Gar Fac Gar Fac Gar Fac Ext Cet Arc Hub Res Res Acc Total 27671 | 77 616 955 317 622 1170 2066 1199 1870 797 1241 2997 641 1234 1163 1515 374 1621 1823 509 238 486 1257 1563 1320 Wait 3533 | . 4 117 . 2 250 170 237 106 38 160 239 261 106 79 53 25 324 423 242 63 45 177 259 153 Move 22398 | 54 566 790 307 611 832 1676 879 1623 715 995 2588 347 1069 1027 1388 307 1243 1299 259 124 403 992 1225 1079 Hop 143 | . 6 12 . . 5 . 9 . 4 . 28 . 8 1 3 4 2 11 . 3 5 9 9 24 Pick Up 62 | 3 4 3 . . 3 10 2 4 2 2 6 1 3 . 2 1 1 2 1 . . 7 3 2 Fast Attach 157 | 3 5 3 4 2 14 19 5 14 6 7 17 1 8 2 4 3 8 4 1 3 1 11 6 6 Attach 68 | 2 2 3 . . 4 9 2 11 2 7 3 1 2 . 5 2 2 . . . 1 5 . 5 Detach 73 | 3 1 1 1 1 5 8 3 12 2 6 5 1 . . 3 1 3 . . 3 2 8 . 4 Swap 108 | . 5 1 . 1 2 2 7 3 5 4 8 5 5 7 12 6 2 16 1 2 4 7 1 2 Drop 152 | . 3 3 5 4 11 27 7 14 7 7 12 1 6 1 6 . 6 4 3 . . 18 2 5 Fire 309 | 12 20 22 . . 8 3 2 6 6 15 19 7 2 30 10 10 8 47 1 40 20 9 . 12 Melee 457 | . . . . 1 36 49 46 35 10 11 57 2 25 16 27 13 22 16 1 . 5 14 43 28 Ram . | . . . . . . . . . . . . . . . . . . . . . . . . . Kick . | . . . . . . . . . . . . . . . . . . . . . . . . . Crush . | . . . . . . . . . . . . . . . . . . . . . . . . . Escape Stasis 207 | . . . . . . 90 . 42 . 27 15 14 . . 2 1 . 1 . . . . 15 . Rewire 1 | . . . . . . . . . . . . . . . . 1 . . . . . . . . Trap 3 | . . . . . . 3 . . . . . . . . . . . . . . . . . . Miscellaneous . | . . . . . . . . . . . . . . . . . . . . . . . . . Route ------- -11/Scrapyard -10/Materials (discovered 5 exits: [*Mat x3] / [*Min x2]) -10/Mines (discovered 3 exits: [*Mat x2] / *Exi) -10/Exiles -9/Mines (discovered 2 exits: *Mat x2) -8/Materials (discovered 4 exits: *Fac x3 / Gar) -8/Garrison (discovered 4 exits: *Mat x4) -8/Materials (discovered 4 exits: *Fac x3 / Gar) -8/Garrison (discovered 3 exits: *Fac x3) -7/Factory (discovered 6 exits: *Fac x2 / *Sto x2 / Low / Gar) -7/Garrison (discovered 3 exits: *Fac x3) -6/Factory (discovered 3 exits: *Fac x2 / Gar) -6/Garrison (discovered 3 exits: *Fac x3) -5/Factory -5/Garrison (discovered 3 exits: *Fac x3) -5/Factory (discovered 4 exits: *Fac x2 / [*Upp] / Gar) -5/Garrison -4/Factory (discovered 3 exits: *Res / *Ext x2) -4/Extension (discovered 2 exits: *Res / *Cet) -4/Cetus (discovered 2 exits: *Res / [*Arc]) -4/Archives (discovered 3 exits: *Res / *Hub x2) -4/Hub_04(d) (discovered 4 exits: *Res x4) -3/Research (discovered 3 exits: *Res x3) -2/Research (discovered 4 exits: *Acc x3 / [*Tes]) -1/Access (discovered 2 exits: *Sur / Com) To Epsilon Eridani History --------- Turn | Location | Event 33 | -11/Scrapyard | Discovered new exit (range 15) 82 | -11/Scrapyard | Entered Materials 82 | -10/Materials | Discovered new exit (range 7) 115 | -10/Materials | Discovered new exit (range 13) 228 | -10/Materials | Discovered new exit (range 16) 309 | -10/Materials | Discovered new exit (range 18) 316 | -10/Materials | Build established: Mutant 340 | -10/Materials | Discovered new exit (range 10) 401 | -10/Materials | Entered Mines 411 | -10/Mines | Discovered new exit (range 17) 424 | -10/Mines | Assembled infested the area 513 | -10/Mines | Deemed a non-threat by the Exiles lab entrance 513 | -10/Mines | Discovered new exit (range 5) 669 | -10/Mines | Learned Materials terminal intel 683 | -10/Mines | Discovered new exit (range 5) 687 | -10/Mines | Assisted by bots powering up and referring to "LRC-V3" 723 | -10/Mines | Learned Materials terminal intel 902 | -10/Mines | Entered Exiles 912 | -10/Exiles | Met 8R-AWN 926 | -10/Exiles | Met EX-HEX 937 | -10/Exiles | Met EX-BIN 941 | -10/Exiles | Aligned with FarCom system 942 | -10/Exiles | Given EX-Vault access code 950 | -10/Exiles | Opened EX-Vault 954 | -10/Exiles | Found Prototype Energy Cannon 954 | -10/Exiles | Identified YOLO Cannon 957 | -10/Exiles | Found Prototype Energy Gun 957 | -10/Exiles | Identified AWS/Thermal 973 | -10/Exiles | Warned to stay clear of 0b10 Research branches 982 | -10/Exiles | Met EX-DEC 1021 | -10/Exiles | Discovered new exit (range 14) 1025 | -10/Exiles | Left Exiles lab with AWS/Thermal 1025 | -10/Exiles | Entered Mines 1059 | -9/Mines | Found a hidden stash of uninstalled traps 1110 | -9/Mines | Discovered new exit (range 11) 1159 | -9/Mines | Learned 4 Materials zone layouts 1236 | -9/Mines | A weapon hastily lodged in a ceiling crevice suddenly fell to the ground 1239 | -9/Mines | Core integrity fell below 50% 1258 | -9/Mines | Discovered new exit (range 7) 1263 | -9/Mines | Entered Materials 1263 | -8/Materials | Evolved 4 slots: Propulsion x1, Utility x3 1264 | -8/Materials | Identified exit to Factory 1265 | -8/Materials | Loaded intel: 12 terminal locations 1745 | -8/Materials | Learned Factory stockpile data 1768 | -8/Materials | Learned Factory emergency access door positions 1782 | -8/Materials | Learned Storage garrison access intel 1796 | -8/Materials | Learned location of Zion (-7) 1812 | -8/Materials | Learned location of 2 exits from Factory 1840 | -8/Materials | Learned Factory stockpile data 1907 | -8/Materials | Build established: Sprinter 1945 | -8/Materials | Identified exit to Garrison 1945 | -8/Materials | Entered Garrison 1991 | -8/Garrison | Triggered checkpoint 2046 | -8/Garrison | Installed Relay Interface Framework 2051 | -8/Garrison | Garrison Relay disabled 2263 | -8/Garrison | Triggered checkpoint 2281 | -8/Garrison | Triggered checkpoint 2397 | -8/Garrison | Discovered new exit (range 10) 2411 | -8/Garrison | Triggered checkpoint 2503 | -8/Garrison | Triggered checkpoint 2863 | -8/Garrison | Triggered checkpoint 2904 | -8/Garrison | Expanded RIF knowledge: Command Fork 2934 | -8/Garrison | Discovered new exit (range 8) 2970 | -8/Garrison | Discovered new exit (range 5) 2982 | -8/Garrison | Phase Generator disabled 2985 | -8/Garrison | Met a derelict Sapper fleeing the area 3029 | -8/Garrison | Discovered new exit (range 3) 3031 | -8/Garrison | Entered Materials 3033 | -8/Materials | Loaded intel: 12 terminal locations 3357 | -8/Materials | Build established: Hacker-Sprinter 3449 | -8/Materials | Learned Factory interactive machine intel 3489 | -8/Materials | Learned Storage security intel 3519 | -8/Materials | Learned 4 Factory zone layouts 3538 | -8/Materials | Learned location of 2 exits from Lower Caves 3548 | -8/Materials | Learned location of 2 exits from Lower Caves 3665 | -8/Materials | Identified exit to Garrison 3669 | -8/Materials | Entered Garrison 3688 | -8/Garrison | Expanded RIF knowledge: Structural Interface 3690 | -8/Garrison | Triggered checkpoint 3708 | -8/Garrison | Garrison Relay disabled 3711 | -8/Garrison | Garrison Relay disabled 3715 | -8/Garrison | Destroyed 7 combat bots 3963 | -8/Garrison | Triggered checkpoint 4001 | -8/Garrison | Triggered checkpoint 4048 | -8/Garrison | Triggered checkpoint 4051 | -8/Garrison | Garrison Relay disabled 4125 | -8/Garrison | Triggered checkpoint 4257 | -8/Garrison | Spotted B-75 Beast 4285 | -8/Garrison | Discovered exit to Factory (range 10) 4332 | -8/Garrison | Garrison Relay disabled 4333 | -8/Garrison | Triggered checkpoint 4413 | -8/Garrison | Discovered exit to Factory (range 77) 4413 | -8/Garrison | Discovered exit to Factory (range 40) 4413 | -8/Garrison | Discovered exit to Factory (range 20) 4435 | -8/Garrison | Entered Factory 4435 | -7/Factory | Evolved 2 slots: Propulsion x1, Utility x1 4436 | -7/Factory | Identified exit to Storage 4437 | -7/Factory | Identified exit to Factory 4438 | -7/Factory | Identified exit to Lower Caves 4441 | -7/Factory | Loaded intel: 52 interactive machine locations 4482 | -7/Factory | Repaired Cesium-ion Thruster 4618 | -7/Factory | Discovered exit to Factory (range 14) 4700 | -7/Factory | Repaired Surge Thruster+ 4727 | -7/Factory | Identified exit to Garrison 4727 | -7/Factory | Entered Garrison 4772 | -7/Garrison | Garrison Relay disabled 4811 | -7/Garrison | Triggered checkpoint 4876 | -7/Garrison | Garrison Relay disabled 4888 | -7/Garrison | Discovered exit to Factory (range 8) 4907 | -7/Garrison | Triggered checkpoint 4938 | -7/Garrison | Expanded RIF knowledge: Patrol Navigation 4945 | -7/Garrison | Discovered exit to Factory (range 10) 4948 | -7/Garrison | Garrison Relay disabled 4957 | -7/Garrison | Triggered checkpoint 5143 | -7/Garrison | Triggered checkpoint 5155 | -7/Garrison | Discovered exit to Factory (range 4) 5189 | -7/Garrison | Rescued a captive Derelict 5200 | -7/Garrison | Rescued a captive Derelict 5257 | -7/Garrison | Garrison Relay disabled 5272 | -7/Garrison | Entered Factory 5272 | -6/Factory | Evolved 2 slots: Utility x2 5330 | -6/Factory | Repaired Surge Thruster+ 5371 | -6/Factory | Repaired Surge Thruster+ 5675 | -6/Factory | AWS/Thermal suddenly broke down 5703 | -6/Factory | Learned location of Warlord (-5) 5754 | -6/Factory | Discovered new exit (range 16) 5757 | -6/Factory | Learned 4 Proximity Caves zone layouts 5793 | -6/Factory | Discovered new exit (range 7) 5801 | -6/Factory | Learned Hub_04(d) emergency access door positions 5834 | -6/Factory | Learned 2 Upper Caves zone layouts 5855 | -6/Factory | Learned location of Extension (-4) 5865 | -6/Factory | Loaded intel: 4 scanalyzer locations 5919 | -6/Factory | Learned location of 2 exits from Archives 5960 | -6/Factory | Learned location of Proximity Caves (-6) 6008 | -6/Factory | Repaired Broken Cld. Cesium-ion Thruster 6031 | -6/Factory | Repaired Surge Thruster+ 6256 | -6/Factory | Repaired Cld. Cesium-ion Thruster 6341 | -6/Factory | Fabricated Cld. Cesium-ion Thruster? 6456 | -6/Factory | Identified exit to Garrison 6480 | -6/Factory | Entered Garrison 6480 | -6/Garrison | Accompanied by 2 allies 6483 | -6/Garrison | Expanded RIF knowledge: Autooverride 6496 | -6/Garrison | Garrison Relay disabled 6519 | -6/Garrison | Triggered checkpoint 6562 | -6/Garrison | Discovered new exit (range 43) 6562 | -6/Garrison | Discovered new exit (range 44) 6562 | -6/Garrison | Discovered new exit (range 51) 6860 | -6/Garrison | Expanded RIF knowledge: Autoassimilate 6878 | -6/Garrison | Entered Factory 6878 | -5/Factory | Evolved 2 slots: Utility x2 6891 | -5/Factory | Central database locked down 7012 | -5/Factory | Fabricated Cld. Cesium-ion Thruster (x1) 7156 | -5/Factory | Repaired Cld. Cesium-ion Thruster 7316 | -5/Factory | Lost 3 parts (1n2u) 7350 | -5/Factory | Identified exit to Garrison 7350 | -5/Factory | Entered Garrison 7361 | -5/Garrison | Garrison Relay disabled 7382 | -5/Garrison | Spotted Striker 7382 | -5/Garrison | Spotted Striker 7404 | -5/Garrison | Triggered checkpoint 7446 | -5/Garrison | Spotted B-75 Beast 7450 | -5/Garrison | Triggered checkpoint 7483 | -5/Garrison | Spotted B-75 Beast 7509 | -5/Garrison | Discovered new exit (range 10) 7514 | -5/Garrison | Garrison Relay disabled 7522 | -5/Garrison | Triggered checkpoint 7605 | -5/Garrison | Triggered checkpoint 7642 | -5/Garrison | Triggered checkpoint 7676 | -5/Garrison | Expanded RIF knowledge: Threat Obfuscation 7684 | -5/Garrison | Triggered checkpoint 7704 | -5/Garrison | Discovered new exit (range 5) 7719 | -5/Garrison | Garrison Relay disabled 7724 | -5/Garrison | Triggered checkpoint 7750 | -5/Garrison | Triggered checkpoint 7775 | -5/Garrison | Discovered new exit (range 6) 7781 | -5/Garrison | Entered Factory 7781 | -5/Factory | Accompanied by 3 allies 8010 | -5/Factory | Repaired Cld. Cesium-ion Thruster? 8041 | -5/Factory | Repaired Imp. Surge Thruster+ 8049 | -5/Factory | Fabricated Cld. VTOL Module (x1) 8108 | -5/Factory | Discovered new exit (range 5) 8125 | -5/Factory | Discovered new exit (range 15) 8269 | -5/Factory | Discovered new exit (range 15) 8305 | -5/Factory | Identified exit to Garrison 8306 | -5/Factory | Entered Garrison 8342 | -5/Garrison | Triggered checkpoint 8354 | -5/Garrison | Garrison Relay disabled 8393 | -5/Garrison | Spotted B-75 Beast 8398 | -5/Garrison | Triggered checkpoint 8408 | -5/Garrison | Triggered checkpoint 8472 | -5/Garrison | Discovered new exit (range 13) 8478 | -5/Garrison | Entered Factory 8478 | -4/Factory | Evolved 2 slots: Power x1, Propulsion x1 8479 | -4/Factory | Identified exit to Extension 9054 | -4/Factory | Found Prototype Hackware 9054 | -4/Factory | Identified Exp. System Shield 9082 | -4/Factory | Fabricated Cld. VTOL Module? 9109 | -4/Factory | Discovered new exit (range 12) 9113 | -4/Factory | Repaired Cld. Cesium-ion Thruster? 9226 | -4/Factory | Build established: Wizard-Sprinter 9282 | -4/Factory | Entered Extension 9406 | -4/Extension | Rescued a captive Derelict 9407 | -4/Extension | Rescued a captive Derelict 9487 | -4/Extension | Rescued a captive Derelict 9644 | -4/Extension | Spotted B-86 Titan 9671 | -4/Extension | Allies destroyed B-86 Titan 9672 | -4/Extension | Spotted B-86 Titan 9680 | -4/Extension | Allies destroyed B-86 Titan 9743 | -4/Extension | Lost 8 allies 9751 | -4/Extension | Rescued A7 10087 | -4/Extension | Discovered new exit (range 10) 10087 | -4/Extension | Discovered new exit (range 6) 10186 | -4/Extension | Entered Cetus 10186 | -4/Cetus | Accompanied by 14 allies (A7) 10191 | -4/Cetus | Acquired a Cetus Manufacturing Module code from A7 10206 | -4/Cetus | Spotted Cetus Guard 10206 | -4/Cetus | Spotted Cetus Guard 10212 | -4/Cetus | Spotted Cetus Guard 10251 | -4/Cetus | Started Cetus Manufacturing Module 10258 | -4/Cetus | Lost 3 allies 10269 | -4/Cetus | Escorted A7 to Cetus Mainframe 10274 | -4/Cetus | Discovered new exit (range 16) 10276 | -4/Cetus | Manufactured an Enhanced Grunt 10301 | -4/Cetus | Manufactured an Enhanced Grunt 10326 | -4/Cetus | Manufactured an Enhanced Grunt 10351 | -4/Cetus | Manufactured an Enhanced Grunt 10376 | -4/Cetus | Manufactured an Enhanced Grunt 10398 | -4/Cetus | Spotted Cetus Guard 10398 | -4/Cetus | Spotted Cetus Guard 10407 | -4/Cetus | Spotted Cetus Guard 10408 | -4/Cetus | Spotted Cetus Guard 10409 | -4/Cetus | Allies destroyed Cetus Guard 10416 | -4/Cetus | Allies destroyed Cetus Guard 10417 | -4/Cetus | Allies destroyed Cetus Guard 10426 | -4/Cetus | Allies destroyed Cetus Guard 10431 | -4/Cetus | Discovered new exit (range 15) 10435 | -4/Cetus | Met Revision 17 10454 | -4/Cetus | Lost 4 allies 10497 | -4/Cetus | Entered Archives 10497 | -4/Archives | Accompanied by 12 allies (A7) 10498 | -4/Archives | Identified exit to Hub_04(d) 10502 | -4/Archives | Received a hacking code to weaken MAIN.C 10552 | -4/Archives | Discovered new exit (range 13) 10679 | -4/Archives | Entered Hub_04(d) 10679 | -4/Hub_04(d) | Accompanied by 8 allies 10700 | -4/Hub_04(d) | Garrison activated, responded to threat 10715 | -4/Hub_04(d) | Discovered new exit (range 16) 10731 | -4/Hub_04(d) | Lost 7 allies 10733 | -4/Hub_04(d) | Discovered new exit (range 16) 10770 | -4/Hub_04(d) | Identified exit to Research 10840 | -4/Hub_04(d) | Network Hub disabled 10869 | -4/Hub_04(d) | Network Hub disabled 10882 | -4/Hub_04(d) | Entered Research 10882 | -3/Research | Evolved 2 slots: Propulsion x1, Utility x1 10944 | -3/Research | Identified exit to Research 11027 | -3/Research | Repaired Centrium Medium Armor Plating 11082 | -3/Research | Revision forces began assault on 0b10 11204 | -3/Research | Met up with Revision 17++ 11312 | -3/Research | Central database locked down 11362 | -3/Research | Spotted B-86 Titan 11385 | -3/Research | Lost 3 allies 11414 | -3/Research | Entered another Research area 11414 | -2/Research | Evolved 2 slots: Propulsion x1, Utility x1 11597 | -2/Research | Repaired Centrium Greatsword 11622 | -2/Research | Repaired Cld. VTOL Module 11645 | -2/Research | Repaired Mic. Antimatter Reactor 11670 | -2/Research | Repaired Broken Lrn. Missile Launcher+ 11686 | -2/Research | Identified exit to Access 11762 | -2/Research | Spotted B-90 Cyclops 11936 | -2/Research | Discovered new exit (range 15) 11950 | -2/Research | Unchained authorized (DW-4LL) 12117 | -2/Research | DW-4LL burst out of a wall 12145 | -2/Research | Entered Access 12145 | -1/Access | Evolved 2 slots: Propulsion x1, Utility x1 12167 | -1/Access | Identified exit to Surface 12167 | -1/Access | Identified exit to Command 12323 | -1/Access | Unchained authorized (DW-4LL) 12487 | -1/Access | Destroyed 7 combat bots 12548 | -1/Access | DW-4LL burst out of a wall 12592 | -1/Access | Spotted B-99 Colossus 12604 | -1/Access | System corruption reached 10% 12634 | -1/Access | Lost 4 parts (4u) 12650 | -1/Access | Spotted B-99 Colossus 12652 | -1/Access | Spotted B-99 Colossus 12670 | *** | Escaped! Last Messages --------------- 12652_ Penetrated by Slug. 12652_ Slug penetrates Door. 12652_ Slug penetrates Wall. 12654_ Sealed Heavy Doors breached. 12655_ Knocked back. 12655_ Penetrated by Slug. 12655_ Adv. Transmission Jammer destroyed. 12655_ Penetrated by Slug. 12655_ Slug penetrates Sealed Heavy Doors. 12655_ Slug penetrates B-99 Colossus. 12656_ Acquired 1 matter. 12659_ Slug penetrates Sealed Heavy Doors. 12659_ Critical hit (Destroy). 12659_ Penetrated by Slug. 12659_ Slug penetrates Sealed Heavy Doors. 12662_ B-99 Colossus activates siege mode. 12666_ 8FKKH:L8 |SS%CIUVE F8E,L=WDQ 12667_ Main Access Shell breached. [Achievement: True Flier] [Achievement: Travel Light] Map ----- +----------------------------------------------------+ | ?????????#""""" # # ???????????????? | | ???????????"""" # # ?????????????????? | | ?????????# # # ???????????????????? | | ?????????+ #% "#????????????????????? | | ?????????# # "#????????????????????? | | ?????????# # ##????????????????????? | | ?????????############## #?????????????????????? | | ??????????????????????# #?????????????????????? | | ??????????????????????#p ##????????????????????? | | ???????????????????#### "###??????????????????? | | ???????????????????# #??????????????????? | | ???????????????????# #??????????????????? | | ???????????????????# #??????????????????? | | ???????????????????# p #??????????????????? | | ???????????????????# BB #??????????????????? | | ???????????????????# BB BB%#??????????????????? | | ???????????????????# BB #??????????????????? | | ???????????????????#"""""""" "#??????????????????? | | ???????????????????????????" "???????????????????? | | ???????????????????????????"s"???????????????????? | | ???????????????????#""""""""s"#??????????????????? | | ???????????????????# #??????????????????? | | ???????????????????# """" " #??????????????????? | | ??????????????????????" " #??????????????????? | | ??????????????????????" "" " #??????????????????? | | ??????????????????????" "@ " #??????????????????? | | ??????????????????????" " #??????????????????? | | ??????????????????????"""""" #??????????????????? | | ??????????????????????????? #??????????????????? | | ??????????????????????????? #??????????????????? | | ???????????????????????????""""??????????????????? | | ?????????????????????????????????????????????????? | | ?????????????????????????????????????????????????? | | ?????????????????????????????????????????????????? | | ?????????????????????????????????????????????????? | | ?????????????????????????????????????????????????? | | ?????????????????????????????????????????????????? | | ?????????????????????????????????????????????????? | | ?????????????????????????????????????????????????? | | ?????????????????????????????????????????????????? | | ?????????????????????????????????????????????????? | | ?????????????????????????????????????????????????? | | ?????????????????????????????????????????????????? | | ?????????????????????????????????????????????????? | | ?????????????????????????????????????????????????? | | ?????????????????????????????????????????????????? | | ?????????????????????????????????????????????????? | | ?????????????????????????????????????????????????? | | ?????????????????????????????????????????????????? | | ?????????????????????????????????????????????????? | +----------------------------------------------------+ Best States ------------- Heat Dissipation 52 Energy Generation 39 Energy Capacity 400 Matter Stores 300 Matter Capacity 300 Sight Range 18 Terrain Scan Range 24 Terrain Scan Density 10 Jamming Range 16 Cloak Strength 3 Additional Mass Support 12 Armor Coverage 450 Melee Speed Boost 40 Evasion (%) 77 Targeting Accuracy 5 Melee Accuracy 16 Offensive Hacking 78 Defensive Hacking 42 Relay Coupler Types 3 Relay Coupler Value 100 Authchip Count 1 Trap Extractor Capacity 4 Item Schematics ----------------- Mni. Grenade Launcher | -8/Materials | Scanalyzed Hacking Suite | -8/Materials | Scanalyzed Imp. VTOL Module | -8/Materials | Scanalyzed Cld. VTOL Module | -6/Factory | Hacked Cld. Cesium-ion Thruster | -6/Factory | Scanalyzed Adv. Hacking Suite | -5/Factory | Hacked Exp. Utility Shielding | -4/Factory | Hacked Exp. Propulsion Shielding | -4/Factory | Hacked Robot Schematics ------------------ None Fabricated ------------ Cld. Cesium-ion Thruster | x1 | -6/Factory Cld. Cesium-ion Thruster | x1 | -5/Factory | Authchip Cld. VTOL Module | x1 | -5/Factory Cld. VTOL Module | x1 | -4/Factory Repaired ---------- Cesium-ion Thruster | 20% | -7/Factory Surge Thruster | 70% | -7/Factory Surge Thruster | 40% | -6/Factory Surge Thruster | 47% | -6/Factory Cld. Cesium-ion Thruster | 99% | -6/Factory | Broken Surge Thruster | 62% | -6/Factory Cld. Cesium-ion Thruster | 64% | -6/Factory Cld. Cesium-ion Thruster | 60% | -5/Factory Cld. Cesium-ion Thruster | 20% | -5/Factory Imp. Surge Thruster | 37% | -5/Factory Cld. Cesium-ion Thruster | 8% | -4/Factory Centrium Medium Armor Plating | 50% | -3/Research Centrium Greatsword | 74% | -2/Research Cld. VTOL Module | 70% | -2/Research Mic. Antimatter Reactor | 48% | -2/Research Lrn. Missile Launcher | 66% | -2/Research | Broken Studied --------- Flight Unit | -8/Materials | Hacked Mni. Grenade Launcher | -8/Materials | Hacked Remote Datajack | -7/Factory | Hacked Surge Thruster | -7/Factory | Hacked Mic. Nuclear Core | -7/Factory | Hacked Lrn. Missile Launcher | -5/Factory | Hacked Imp. Surge Thruster | -5/Factory | Hacked Impulse Thruster Array | -3/Research | Hacked Lgt. Antimatter Reactor | -3/Research | Hacked Alien Tech Used ----------------- None Achievements -------------- Bending The Rules Drive-By Fitting Room Hackathon Hackerman Join The Dark Side Let Me Out Of Here Mindtrick Official Business Oppo Buddy Professional Mechanic Recruitment Drive Satisfying Supersonic Travel Light True Flier Versatile You Will Be Upgraded Challenges ------------ None Game ------ Seed MediumThrusterRay Manual? 0 Play Time 04:43:28 Cumulative 258.6 hours Start 2025.12.22 @ 15:37:53 End 2025.12.22 @ 22:11:24 Sessions 3 Manual Loads 0 Difficulty Rogue Special Mode None Game No. 105 Rogue 105 Adventurer 0 Explorer 0 Win Type 0 Total 26 Types 10/3/6/2/1/0/0/1/1/2 Lore% 79 Gallery% 76 Achievement% 60 Wizard Run 0 Options --------- Layout 0 ASCII 0 Keyboard 1 Movement Vi Keybinds 0 Fullscreen 2 Font 18/SmallcapsGlow Map View 76x50 Zoom Use 0% Tactical HUD 1 Map Filters NONE Filters NONE Steam 1 RUN: a0f8d3b1-ddae-411f-97f0-084e4273e8bd